bitfinex-derivatives/quotes_SOLF0:USTF0_20250716
["timestamp","ask_amount","ask_price","bid_price","bid_amount"]
[1752662955478,6.0097,166.38,166.32,4.13347664]
[1752662955976,6.0099,166.37,166.28,176.56]
[1752662956172,6.0099,166.37,166.31,4.13347664]
[1752662956677,6.0099,166.37,166.33,6.0109]
[1752662956877,6.0096,166.38,166.31,4.13347664]
[1752662957275,6.0096,166.38,166.34,6.0105]
[1752662958378,6.0099,166.37,166.34,6.0105]
[1752662958678,4.13347664,166.39,166.34,6.0105]
[1752662958979,6.0097,166.38,166.34,6.0105]
[1752662959477,25.37336047,166.46,166.35,4.13347664]
[1752662959678,4.13347664,166.44,166.35,4.13347664]
[1752662959870,4.13347664,166.42,166.29,12.0254]
[1752662960068,6.0097,166.38,166.35,6.0105]
[1752662960270,4.13347664,166.4,166.27,519.46]
[1752662960476,4.13347664,166.38,166.29,4.13347664]
[1752662960676,4.13347664,166.38,166.3,4.13347664]
[1752662961078,6.0108,166.35,166.3,4.13347664]
[1752662961679,6.0108,166.35,166.31,6.0117]
[1752662963384,6.0109,166.34,166.31,6.0117]
[1752662966884,6.0109,166.34,166.3,6.0121]
[1752662967187,6.0109,166.34,166.28,180.45579989]
[1752662967486,4.13579989,166.36,166.29,6.0124]
[1752662967674,4.13579989,166.4,166.28,176.32]
[1752662967878,4.13579989,166.35,166.28,176.32]
[1752662968184,6.0111,166.34,166.28,176.32]
[1752662968684,6.0111,166.34,166.3,6.0121]
[1752662969581,6.0111,166.34,166.28,176.32]
[1752662970184,6.0111,166.34,166.31,6.0118]
[1752662971683,6.0111,166.34,166.3,6.0122]
[1752662973583,6.0105,166.36,166.28,180.45579989]
[1752662973789,4.13579989,166.37,166.28,180.45579989]
[1752662974286,6.0105,166.35,166.32,6.0116]
[1752662974493,6.0105,166.35,166.28,180.45579989]
[1752662974889,6.0105,166.35,166.31,6.0118]
[1752662975585,6.0105,166.35,166.32,6.0116]
[1752662975785,4.13579989,166.38,166.28,180.45579989]
[1752662976087,4.13579989,166.38,166.32,6.0116]
[1752662976286,6.0104,166.36,166.32,6.0116]
[1752662977992,6.0104,166.36,166.31,6.0118]
[1752662978187,4.13579989,166.38,166.28,176.32]
[1752662978384,4.13569071,166.36,166.28,180.45569071]
[1752662978992,6.0111,166.34,166.28,180.45569071]
[1752662979390,6.0111,166.34,166.3,6.0121]
[1752662979590,6.0111,166.34,166.31,6.13829705]
[1752662979890,6.0111,166.34,166.32,6.13829705]
[1752662980090,6.0111,166.34,166.33,6.13829705]
[1752662984399,6.0111,166.34,166.31,6.012]
[1752662984600,6.0111,166.34,166.32,6.14053882]
[1752662984801,6.0107,166.35,166.33,6.14053882]
[1752662984997,6.0107,166.35,166.31,6.012]
[1752662985201,6.0107,166.35,166.32,12.15197879]
[1752662985403,6.0107,166.35,166.33,6.14037879]
[1752662985597,6.0107,166.35,166.31,6.0118]
[1752662985798,6.0109,166.34,166.32,6.14045194]
[1752662985994,6.0109,166.34,166.33,6.14045194]
[1752662986698,4.13569071,166.4,166.33,6.14045194]
[1752662987001,6.0107,166.35,166.31,6.0118]
[1752662987201,6.0107,166.35,166.32,6.14167294]
[1752662987394,6.0107,166.35,166.33,6.14167294]
[1752662987594,6.0107,166.35,166.31,6.0118]
[1752662987897,6.0107,166.35,166.32,6.14266632]
[1752662988095,6.0107,166.35,166.33,6.14266632]
[1752662988293,6.0107,166.35,166.31,6.0118]
[1752662988495,6.0107,166.35,166.32,6.142707]
[1752662988697,6.0107,166.35,166.33,6.142707]
[1752662988902,4.13569071,166.37,166.28,176.32]
[1752662988903,6.0111,166.34,166.3,6.0123]
[1752662989102,6.0111,166.34,166.31,6.14278705]
[1752662989403,4.13589779,166.4,166.32,6.14278705]
[1752662989702,4.13589779,166.4,166.33,6.14278705]
[1752662989896,4.13589779,166.4,166.28,176.32]
[1752662990100,6.0108,166.35,166.31,6.0119]
[1752662990300,4.13589779,166.34,166.32,6.14277422]
[1752662990496,4.13589779,166.34,166.24,4.13589779]
[1752662990702,4.13589779,166.32,166.25,181.71362204]
[1752662990901,4.13781039,166.33,166.26,6.05362204]
[1752662991104,6.0122,166.31,166.28,6.0129]
[1752662991301,6.0122,166.31,166.29,6.05362204]
[1752662991502,6.0122,166.31,166.3,6.05362204]
[1752662991701,6.0117,166.32,166.3,6.05362204]
[1752662991901,6.0117,166.32,166.31,6.05362204]
[1752662993102,6.0117,166.32,166.27,6.0133]
[1752662993307,4.13781039,166.34,166.28,6.09584008]
[1752662993499,4.13781039,166.36,166.29,6.09584008]
[1752662993702,4.13781039,166.36,166.3,6.09584008]
[1752662993908,6.0111,166.34,166.31,6.09584008]
[1752662994103,6.0111,166.34,166.32,6.09584008]
[1752662994304,6.0111,166.34,166.29,6.0125]
[1752662994505,6.0111,166.34,166.3,6.09478811]
[1752662994705,6.0111,166.34,166.31,6.09478811]
[1752662994909,6.0111,166.34,166.32,6.09478811]
[1752662995103,6.0111,166.34,166.33,6.09478811]
[1752662996207,6.0117,166.32,166.27,4.13781039]
[1752662996409,6.0117,166.32,166.28,6.0945488]
[1752662996607,6.0117,166.32,166.29,6.0945488]
[1752662996910,6.0117,166.32,166.3,6.0945488]
[1752662997109,6.0117,166.32,166.31,6.0945488]
[1752663000015,6.0113,166.33,166.31,6.0945488]
[1752663000310,6.0113,166.33,166.32,6.0945488]
[1752663000511,6.0117,166.32,166.28,10.15071039]
[1752663000714,6.0117,166.32,166.29,6.09356393]
[1752663001012,6.0117,166.32,166.3,6.09356393]
[1752663001212,6.0117,166.32,166.28,4.13781039]
[1752663001409,6.0117,166.32,166.29,6.0941265]
[1752663001608,6.012,166.31,166.3,6.0941265]
[1752663001808,4.13781039,166.36,166.3,6.09414215]
[1752663002010,6.0118,166.32,166.31,6.09414215]
[1752663002407,13.36016047,166.4,166.31,6.09414215]
[1752663002609,4.13781039,166.38,166.32,6.09414215]
[1752663002805,4.13781039,166.38,166.3,6.0123]
[1752663003010,4.13781039,166.38,166.31,6.09433204]
[1752663003216,4.13781039,166.38,166.32,6.09433204]
[1752663003416,4.13781039,166.38,166.3,6.0123]
[1752663003614,4.13781039,166.38,166.31,6.09490011]
[1752663003815,6.0108,166.35,166.32,6.09490011]
[1752663004014,6.0108,166.35,166.3,6.0123]
[1752663004216,6.0108,166.35,166.31,6.09490011]
[1752663004417,13.36016047,166.41,166.32,6.09490011]
[1752663004615,13.36016047,166.41,166.33,6.09529782]
[1752663004616,4.13552276,166.41,166.33,6.09529782]
[1752663004818,4.13552276,166.41,166.34,6.09529782]
[1752663005114,6.0104,166.36,166.35,6.09529782]
[1752663009613,4.13440075,166.4,166.35,6.09529782]
[1752663009818,4.13440075,166.4,166.32,4.13440075]
[1752663010115,6.0099,166.37,166.33,12.10371423]
[1752663010316,6.0099,166.37,166.34,6.09271423]
[1752663010517,6.0099,166.37,166.35,6.09271423]
[1752663010717,6.0099,166.37,166.33,6.011]
[1752663010921,6.0099,166.37,166.34,6.09163788]
[1752663011120,6.0099,166.37,166.33,4.13440075]
[1752663011317,6.0099,166.37,166.34,6.09171224]
[1752663011519,6.0099,166.37,166.33,10.14560075]
[1752663011719,6.0099,166.37,166.34,6.09106359]
[1752663011922,6.0099,166.37,166.33,10.14560075]
[1752663012110,6.0099,166.37,166.34,6.09106359]
[1752663012314,6.0099,166.37,166.35,6.09106359]
[1752663012517,6.0099,166.37,166.33,10.14560075]
[1752663012719,6.0099,166.37,166.34,6.09008774]
[1752663013017,6.0099,166.37,166.35,6.09008774]
[1752663013219,6.0099,166.37,166.33,10.14560075]
[1752663013417,6.0097,166.38,166.34,12.10010107]
[1752663013714,222.31561489,166.44,166.35,10.22370182]
[1752663013919,213.08985517,166.44,166.36,6.08930107]
[1752663014110,213.08985517,166.44,166.35,4.13440075]
[1752663014111,6.009,166.4,166.37,4.13440075]
[1752663014519,6.0091,166.39,166.37,4.13440075]
[1752663016527,6.0091,166.39,166.35,6.0102]
[1752663016725,213.08985517,166.44,166.36,10.21849858]
[1752663016921,4.13440075,166.42,166.34,179.77440075]
[1752663017222,4.13440075,166.42,166.35,6.08425274]
[1752663017524,4.13440075,166.42,166.34,179.77440075]
[1752663017723,4.13440075,166.42,166.35,6.08343835]
[1752663017922,4.13440075,166.42,166.34,179.77440075]
[1752663018119,6.0094,166.39,166.35,12.09385771]
[1752663018326,6.0094,166.39,166.35,6.0105]
[1752663019630,213.08985517,166.44,166.36,4.13440075]
[1752663020123,6.009,166.4,166.36,10.14440075]
[1752663020320,4.13440075,166.42,166.26,23.03805461]
[1752663020626,4.13440075,166.36,166.28,4.13440075]
[1752663020823,4.13440075,166.34,166.29,6.08036666]
[1752663021024,4.13440075,166.34,166.28,175.6]
[1752663021224,4.13440075,166.34,166.29,5.99248574]
[1752663021526,4.13440075,166.34,166.28,175.6]
[1752663021726,4.13440075,166.34,166.29,5.992219]
[1752663021927,4.13440075,166.34,166.28,175.6]
[1752663022128,6.0122,166.31,166.29,5.99221955]
[1752663022325,6.0122,166.31,166.28,175.6]
[1752663022525,6.0122,166.31,166.29,5.99196592]
[1752663022726,6.0122,166.31,166.28,175.6]
[1752663022927,6.0122,166.31,166.29,5.99196593]
[1752663023120,4.13440075,166.32,166.27,175.58]
[1752663023431,4.13440075,166.32,166.28,5.97927319]
[1752663023626,4.13440075,166.3,166.25,525.434]
[1752663023831,4.13440075,166.3,166.27,175.6]
[1752663024027,4.13440075,166.3,166.25,525.434]
[1752663024234,6.0129,166.29,166.26,181.57944733]
[1752663024528,6.0129,166.29,166.26,175.6]
[1752663024733,12.0197,166.37,166.26,181.6138]
[1752663024935,4.13440075,166.32,166.27,5.97809302]
[1752663025237,4.13440075,166.32,166.27,11.99149302]
[1752663025429,4.13440075,166.32,166.27,6.0134]
[1752663025734,4.13440075,166.32,166.26,175.6]
[1752663025932,4.13440075,166.32,166.25,525.434]
[1752663026237,4.13440075,166.32,166.27,175.6]
[1752663027137,4.13440075,166.32,166.26,6.0137]
[1752663027331,4.13440075,166.32,166.27,175.62]
[1752663027532,6.0125,166.3,166.27,181.6334]
[1752663027937,6.0125,166.3,166.27,175.62]
[1752663028234,4.13440075,166.3,166.25,519.42]
[1752663028438,4.13440075,166.3,166.26,175.6]
[1752663028628,4.13440075,166.32,166.26,175.6]
[1752663029535,6.0127,166.3,166.26,175.6]
[1752663029736,6.0127,166.3,166.25,519.42]
[1752663029938,4.13440075,166.32,166.26,175.62]
[1752663030639,4.13440075,166.32,166.26,181.6335]
[1752663030833,4.13440075,166.32,166.26,175.62]
[1752663031535,6.0125,166.3,166.26,181.6336]
[1752663032340,17.49456122,166.4,166.26,175.62]
[1752663032531,4.13440075,166.33,166.26,175.62]
[1752663033539,6.0126,166.3,166.26,175.62]
[1752663034040,4.13440075,166.31,166.26,175.62]
[1752663034836,6.0124,166.3,166.27,5.97232866]
[1752663035134,12.019,166.38,166.26,181.6336]
[1752663035135,12.019,166.38,166.26,175.62]
[1752663035336,4.13440075,166.34,166.27,5.97224195]
[1752663035543,4.13440075,166.34,166.28,5.97224195]
[1752663035842,6.0118,166.32,166.28,6.0129]
[1752663039734,6.0114,166.33,166.27,4.13440075]
[1752663039939,6.0114,166.33,166.28,5.97103165]
[1752663040139,4.13440075,166.36,166.29,5.97103165]
[1752663040340,6.0111,166.34,166.3,181.59089277]
[1752663040543,6.0111,166.34,166.3,175.62]
[1752663040746,6.0107,166.35,166.31,11.98258023]
[1752663041042,4.13440075,166.38,166.3,179.75440075]
[1752663041440,6.0106,166.35,166.3,179.75440075]
[1752663041844,6.0106,166.35,166.31,6.0117]
[1752663042446,6.0103,166.36,166.32,6.0116]
[1752663042845,4.13440075,166.38,166.3,179.75440075]
[1752663043351,6.0106,166.35,166.3,179.75440075]
[1752663044047,6.0103,166.36,166.31,5.97122828]
[1752663044247,6.0103,166.36,166.3,179.75440075]
[1752663044447,6.0098,166.38,166.34,6.0106]
[1752663044747,6.0098,166.38,166.35,175.6]
[1752663046246,6.0092,166.39,166.35,175.6]
[1752663046641,4.13440075,166.43,166.35,179.73440075]
[1752663047244,6.0082,166.42,166.37,10.14400075]
[1752663047945,6.0078,166.43,166.38,6.0094]
[1752663048446,6.0081,166.42,166.38,6.0094]
[1752663049649,6.0081,166.42,166.37,10.14400075]
[1752663050549,6.0081,166.42,166.38,6.0094]
[1752663051745,6.0081,166.42,166.37,10.14410075]
[1752663052145,208.95545442,166.44,166.37,6.0097]
[1752663052349,6.0084,166.41,166.38,4.13440075]
[1752663052846,6.0084,166.41,166.38,179.67440075]
[1752663055445,6.0084,166.41,166.38,179.63440075]
[1752663055847,6.0084,166.41,166.37,6.0097]
[1752663056051,4.13440075,166.41,166.33,4.13440075]
[1752663056347,4.13440075,166.41,166.34,175.5]
[1752663056851,6.0091,166.39,166.34,181.5107]
[1752663057247,208.95545442,166.44,166.35,4.13440075]
[1752663057453,6.0085,166.41,166.35,10.14490075]
[1752663057652,4.13440075,166.43,166.35,10.14490075]
[1752663057956,6.0091,166.4,166.35,4.13440075]
[1752663059252,6.0091,166.4,166.35,10.14470075]
[1752663059952,6.0091,166.4,166.35,6.0103]
[1752663060153,208.95545442,166.44,166.34,175.5]
[1752663060154,4.13440075,166.41,166.34,179.63440075]
[1752663060556,6.0095,166.38,166.34,179.63440075]
[1752663060848,6.0095,166.38,166.34,175.5]
[1752663061251,6.0092,166.39,166.34,175.5]
[1752663061754,6.0092,166.39,166.34,181.5109]
[1752663063254,6.0089,166.4,166.34,181.5109]
[1752663064555,6.0091,166.39,166.34,181.5109]
[1752663066057,6.0088,166.4,166.35,6.0105]
[1752663066656,6.0091,166.39,166.35,6.0105]
[1752663068057,6.0089,166.4,166.36,6.0101]
[1752663068458,4.13440075,166.41,166.34,175.5]
[1752663068760,6.0086,166.41,166.36,6.0101]
[1752663070357,6.0078,166.43,166.38,6.0094]
[1752663071358,208.95545442,166.44,166.37,4.13440075]
[1752663071861,6.0078,166.43,166.38,6.0093]
[1752663073063,6.0078,166.43,166.39,6.009]
[1752663073260,214.96285442,166.44,166.39,6.009]
[1752663073563,208.95545442,166.44,166.39,4.13440075]
[1752663073763,124.0,166.48,166.43,4.13440075]
[1752663074155,124.0,166.48,166.45,6.0067]
[1752663075868,124.0,166.48,166.32,16.15770075]
[1752663076066,4.13440075,166.46,166.4,4.13440075]
[1752663076360,4.13440075,166.46,166.36,181.3800823]
[1752663076361,6.0071,166.45,166.38,4.13440075]
[1752663076566,6.0071,166.45,166.4,6.0085]
[1752663077064,6.0071,166.45,166.36,175.42]
[1752663077267,128.13440075,166.48,166.37,181.3405736]
[1752663077472,4.13440075,166.44,166.37,179.51440075]
[1752663077771,10.14170075,166.44,166.39,6.009]
[1752663078570,10.14170075,166.44,166.37,179.51440075]
[1752663078973,10.14170075,166.44,166.4,6.0087]
[1752663079270,124.0,166.48,166.37,179.51440075]
[1752663079470,124.0,166.48,166.39,4.13440075]
[1752663079678,124.0,166.48,166.41,4.13440075]
[1752663080775,124.0,166.48,166.4,4.13440075]
[1752663080973,6.0068,166.46,166.41,6.0081]
[1752663081274,6.0068,166.46,166.4,4.13440075]
[1752663081578,6.0072,166.45,166.38,4.13440075]
[1752663081772,4.13440075,166.47,166.39,175.36]
[1752663082281,6.0068,166.46,166.41,6.0081]
[1752663082478,4.13440075,166.47,166.41,6.0081]
[1752663083281,6.0069,166.45,166.41,6.0081]
[1752663083878,6.0067,166.46,166.42,6.0079]
[1752663087982,6.0064,166.47,166.41,175.34]
[1752663088285,128.13440075,166.48,166.41,175.34]
[1752663088988,6.0067,166.46,166.42,6.0078]
[1752663089887,6.0064,166.47,166.43,6.0076]
[1752663090387,128.13440075,166.48,166.41,175.34]
[1752663090582,134.14050075,166.48,166.43,6.0074]
[1752663090888,128.13440075,166.48,166.43,6.0074]
[1752663091282,6.0064,166.47,166.43,6.0074]
[1752663093884,128.13440075,166.48,166.41,175.34]
[1752663094087,4.13440075,166.44,166.35,523.39440075]
[1752663094391,6.0078,166.43,166.36,181.34905112]
[1752663094690,6.0078,166.43,166.39,6.0088]
[1752663096089,10.14190075,166.44,166.4,6.0087]
[1752663096492,4.13440075,166.44,166.4,6.0087]
[1752663098088,6.0077,166.43,166.4,6.0087]
[1752663098391,6.0077,166.43,166.39,6.0089]
[1752663098592,6.0086,166.41,166.36,178.90547]
[1752663098895,6.0086,166.41,166.37,6.04957904]
[1752663099190,6.0086,166.41,166.36,178.90547]
[1752663099392,6.0086,166.41,166.37,12.05967518]
[1752663099592,6.0086,166.41,166.37,6.0096]
[1752663099788,6.0086,166.41,166.36,178.90547]
[1752663099988,10.14260075,166.42,166.38,6.0091]
[1752663100284,10.14260075,166.42,166.36,178.90547]
[1752663100488,10.14260075,166.42,166.38,6.0092]
[1752663100795,4.13440075,166.44,166.36,183.03987075]
[1752663100990,4.13440075,166.44,166.39,6.009]
[1752663101385,6.0079,166.43,166.39,6.009]
[1752663101889,4.13440075,166.44,166.39,6.009]
[1752663102089,4.13440075,166.44,166.38,6.0093]
[1752663102284,4.13440075,166.42,166.38,6.0093]
[1752663102489,6.0085,166.41,166.38,6.0093]
[1752663102994,4.13440075,166.42,166.39,6.0091]
[1752663103194,10.14260075,166.42,166.39,6.0091]
[1752663103792,6.0084,166.41,166.39,6.0091]
[1752663104495,6.0084,166.41,166.38,6.0093]
[1752663104691,4.13440075,166.4,166.36,3.60547]
[1752663104899,4.13440075,166.4,166.36,184.89537]
[1752663105196,4.13440075,166.4,166.36,178.88547]
[1752663105592,10.14340075,166.4,166.37,6.0096]
[1752663106195,6.009,166.4,166.37,6.0096]
[1752663106496,4.13440075,166.42,166.36,184.89557]
[1752663106497,6.0091,166.39,166.36,184.89557]
[1752663106692,4.13440075,166.4,166.36,178.88547]
[1752663107098,6.0093,166.39,166.36,178.88547]
[1752663107294,6.0093,166.39,166.36,184.89547]
[1752663108095,10.14330075,166.4,166.37,6.0098]
[1752663108794,4.13440075,166.4,166.36,178.88547]
[1752663109092,6.0091,166.39,166.36,184.89547]
[1752663109598,6.0095,166.38,166.36,178.88547]
[1752663110495,6.0095,166.38,166.36,3.60547]
[1752663110794,6.0095,166.38,166.37,175.28]
[1752663112298,6.0098,166.37,166.36,3.60547]
[1752663112599,10.14420075,166.37,166.36,178.88547]
[1752663113199,4.13440075,166.37,166.33,175.28]
[1752663113399,4.13440075,166.35,166.33,175.28]
[1752663113991,6.0109,166.34,166.33,175.28]
[1752663117296,6.0106,166.35,166.33,175.28]
[1752663118696,6.0109,166.34,166.33,175.28]
[1752663118898,4.13440075,166.36,166.32,175.28]
[1752663119802,6.0115,166.33,166.32,175.28]
[1752663121001,6.0115,166.33,166.3,6.0122]
[1752663121198,4.13440075,166.34,166.27,519.18]
[1752663121499,4.13440075,166.32,166.28,175.28]
[1752663121695,6.0122,166.31,166.28,181.2929]
[1752663122298,6.0122,166.31,166.28,175.28]
[1752663122699,6.0122,166.31,166.28,181.2928]
[1752663122997,6.0122,166.31,166.28,6.0128]
[1752663123195,6.0122,166.31,166.29,175.3]
[1752663123802,6.0123,166.3,166.29,175.3]
[1752663124796,4.13440075,166.32,166.27,519.18]
[1752663125000,4.13440075,166.32,166.28,175.28]
[1752663125302,6.0127,166.29,166.28,175.28]
[1752663125703,6.0127,166.29,166.27,519.18]
[1752663125905,6.0127,166.29,166.28,175.3]
[1752663128014,4.13440075,166.34,166.28,175.3]
[1752663128707,6.0124,166.3,166.28,175.3]
[1752663130014,4.1365644,166.36,166.28,179.4365644]
[1752663130412,4.1354385,166.39,166.3,4.1354385]
[1752663130612,4.1354385,166.39,166.31,175.3]
[1752663131008,6.0111,166.34,166.31,181.312]
[1752663131615,6.0111,166.34,166.31,175.3]
[1752663132415,6.0111,166.34,166.31,181.3119]
[1752663134608,4.1354385,166.35,166.27,523.3154385]
[1752663134807,4.1354385,166.35,166.28,175.28]
[1752663135314,6.0121,166.31,166.28,181.293]
[1752663136212,4.1354385,166.36,166.29,4.1354385]
[1752663136814,6.0115,166.33,166.29,4.1354385]
[1752663137117,4.1354385,166.36,166.29,4.1354385]
[1752663137514,6.0118,166.32,166.29,4.1354385]
[1752663137716,4.1354385,166.36,166.28,179.4154385]
[1752663137915,4.1354385,166.34,166.29,175.28]
[1752663138317,6.0122,166.31,166.29,175.28]
[1752663138518,4.1354385,166.34,166.29,175.28]
[1752663139017,6.0122,166.31,166.28,6.013]
[1752663139222,4.1354385,166.32,166.28,175.26]
[1752663139613,6.013,166.29,166.28,175.26]
[1752663142218,4.1354385,166.32,166.27,175.26]
[1752663142620,6.0131,166.28,166.27,175.26]
[1752663143025,4.1354385,166.32,166.24,10.1496385]
[1752663143227,4.1354385,166.32,166.25,175.26]
[1752663143428,4.1354385,166.3,166.25,175.26]
[1752663144130,6.0138,166.26,166.25,175.26]
[1752663145432,6.0142,166.25,166.22,10.1505385]
[1752663145633,6.0142,166.25,166.23,175.26]
[1752663145935,4.1354385,166.28,166.24,175.26]
[1752663146137,4.1354385,166.28,166.25,175.26]
[1752663146837,6.0138,166.26,166.25,175.26]
[1752663147533,6.0136,166.27,166.25,175.26]
[1752663147733,4.1354385,166.3,166.25,175.26]
[1752663148137,6.0136,166.27,166.25,175.26]
[1752663150740,222.49595418,166.32,166.25,175.26]
[1752663151638,218.36051568,166.32,166.26,10.06123428]
[1752663151938,218.36051568,166.32,166.26,4.1354385]
[1752663153438,6.0121,166.31,166.27,6.0131]
[1752663154643,6.0121,166.31,166.28,6.013]
[1752663156138,6.0121,166.31,166.27,6.0132]
[1752663156538,6.0121,166.31,166.25,179.3954385]
[1752663156740,6.0121,166.31,166.26,5.93808497]
[1752663156933,6.0121,166.31,166.25,179.3954385]
[1752663157243,6.0121,166.31,166.26,5.93808611]
[1752663157439,6.0121,166.31,166.25,179.3954385]
[1752663157636,6.0121,166.31,166.27,6.0132]
[1752663158444,224.37231568,166.32,166.28,6.013]
[1752663159141,6.012,166.31,166.28,6.013]
[1752663159841,6.012,166.31,166.27,6.0132]
[1752663160040,218.36051568,166.32,166.27,6.0132]
[1752663160041,6.0124,166.3,166.27,6.0132]
[1752663160544,4.1354385,166.3,166.26,175.22]
[1752663160940,6.0131,166.28,166.26,175.22]
[1752663161644,4.1354385,166.3,166.21,4.1354385]
[1752663161941,4.1354385,166.3,166.22,175.22]
[1752663162143,6.014,166.26,166.22,181.235]
[1752663164143,6.0141,166.25,166.22,181.235]
[1752663164544,6.0141,166.25,166.23,175.22]
[1752663166144,4.1354385,166.28,166.23,181.2348]
[1752663167145,6.0135,166.27,166.23,181.2348]
[1752663168046,6.0138,166.26,166.23,175.22]
[1752663168445,6.0138,166.26,166.22,6.0151]
[1752663168641,222.49595418,166.32,166.23,175.22]
[1752663168947,4.1354385,166.28,166.23,175.22]
[1752663169146,6.0139,166.26,166.23,175.22]
[1752663170848,6.0139,166.26,166.22,6.0151]
[1752663171049,6.0139,166.26,166.23,181.2348]
[1752663171750,6.0136,166.27,166.23,181.2348]
[1752663172152,4.1354385,166.28,166.23,6.0148]
[1752663172354,4.1354385,166.28,166.24,175.2]
[1752663172650,6.0135,166.27,166.24,175.2]
[1752663173052,6.0135,166.27,166.24,181.2145]
[1752663173548,218.36051568,166.32,166.24,175.2]
[1752663173853,6.0125,166.3,166.24,179.3354385]
[1752663174049,222.49595418,166.32,166.24,179.3354385]
[1752663175152,222.49595418,166.32,166.26,6.0135]
[1752663175546,218.36051568,166.32,166.26,4.13778599]
[1752663175751,13.36016047,166.38,166.3,4.13778599]
[1752663176045,17.49794646,166.39,166.32,4.13778599]
[1752663176247,6.01,166.37,166.33,181.2111]
[1752663176443,4.13778599,166.41,166.33,175.2]
[1752663176849,4.13778599,166.41,166.34,6.0107]
[1752663177255,6.0098,166.38,166.34,6.0107]
[1752663177956,6.0099,166.37,166.34,6.0107]
[1752663181361,6.0099,166.37,166.33,181.2111]
[1752663182763,6.0102,166.36,166.33,181.2111]
[1752663182963,6.0102,166.36,166.32,10.14592012]
[1752663184164,6.0102,166.36,166.33,6.0112]
[1752663184657,4.13442012,166.4,166.31,175.12]
[1752663184964,4.13442012,166.4,166.31,4.13442012]
[1752663185163,4.13442012,166.38,166.31,4.13442012]
[1752663185464,4.13442012,166.38,166.29,4.13442012]
[1752663185964,6.0115,166.33,166.29,10.14682012]
[1752663186863,6.0115,166.33,166.3,6.0123]
[1752663192170,6.011,166.34,166.31,6.0119]
[1752663192373,4.13511643,166.39,166.32,4.13511643]
[1752663192669,6.0103,166.36,166.33,6.0112]
[1752663194762,6.0103,166.36,166.32,10.14651643]
[1752663195773,4.13460844,166.4,166.32,4.13460844]
[1752663196269,4.13460844,166.42,166.34,4.13460844]
[1752663196769,6.0093,166.39,166.34,4.13460844]
[1752663196970,4.13460844,166.42,166.34,4.13460844]
[1752663198168,6.0096,166.38,166.35,6.0103]
[1752663199675,4.13460844,166.4,166.32,4.13460844]
[1752663199871,4.13460844,166.4,166.33,6.27964051]
[1752663200073,6.0101,166.37,166.33,6.0111]
[1752663203472,6.0102,166.36,166.33,6.0111]
[1752663206672,6.0099,166.37,166.33,6.0111]
[1752663207270,6.0102,166.36,166.33,6.0111]
[1752663207470,4.13460844,166.4,166.33,6.0111]
[1752663207671,6.0099,166.37,166.33,6.0111]
[1752663208169,6.0099,166.37,166.34,6.0109]
[1752663210266,4.13460844,166.4,166.32,179.13460844]
[1752663210267,6.0102,166.36,166.33,6.0111]
[1752663214574,6.0107,166.35,166.32,185.14600844]
[1752663214774,6.0107,166.35,166.32,181.0114]
[1752663214973,4.13460844,166.38,166.31,179.09460844]
[1752663215180,4.13460844,166.38,166.31,185.10640844]
[1752663215381,4.13460844,166.38,166.32,6.309465]
[1752663215677,4.13460844,166.38,166.31,180.9718]
[1752663215879,4.13460844,166.38,166.31,174.96]
[1752663216480,6.0112,166.34,166.32,6.31307492]
[1752663216680,6.0112,166.34,166.31,180.9718]
[1752663216880,6.0112,166.34,166.32,6.31307492]
[1752663217079,6.0112,166.33,166.31,180.9718]
[1752663217379,4.13460844,166.38,166.32,6.3134397]
[1752663217579,6.0112,166.34,166.31,180.9718]
[1752663217781,6.0112,166.34,166.32,6.3171166]
[1752663217978,6.0112,166.34,166.31,180.9718]
[1752663218179,6.0107,166.35,166.32,6.3171166]
[1752663218383,6.0107,166.35,166.33,6.3171166]
[1752663218576,204.03979121,166.42,166.31,179.09460844]
[1752663218778,6.0104,166.36,166.33,6.011]
[1752663218974,6.0104,166.36,166.34,6.32121931]